[Event "FIDE World Cup 2013"]
[Site "TromsÃ¸"]
[Date "2013.08.13"]
[Round "1.4"]
[White "Bruzon Batista, Lazaro"]
[Black "Najer, Evgeniy"]
[Result "1-0"]
[ECO "B47"]
[WhiteElo "2691"]
[BlackElo "2628"]
[PlyCount "69"]
[EventDate "2013.??.??"]
[EventCountry "NOR"]
[TimeControl "1500+10"]

1. e4 {[%emt 0:00:00]} c5 {[%emt 0:00:00]} 2. Nf3 {[%emt 0:00:00]} e6 {[%emt 0:
00:00]} 3. d4 {[%emt 0:01:36]} cxd4 {[%emt 0:00:00]} 4. Nxd4 {[%emt 0:00:02]}
Nc6 {[%emt 0:00:00]} 5. Nc3 {[%emt 0:00:03]} Qc7 {[%emt 0:00:02]} 6. g3 {[%emt
0:00:03]} a6 {[%emt 0:00:07]} 7. Bg2 {[%emt 0:00:02]} h5 {[%emt 0:00:09]} 8. h3
{[%emt 0:01:05]} Nge7 {[%emt 0:00:15]} 9. Nb3 {[%emt 0:01:39]} h4 {[%emt 0:01:
18]} 10. g4 {[%emt 0:00:11]} Ng6 {[%emt 0:00:08]} 11. Ne2 {[%emt 0:01:06]} b6 {
[%emt 0:02:02]} 12. O-O {[%emt 0:00:14]} Bb7 {[%emt 0:00:01]} 13. f4 {[%emt 0:
00:47]} Na5 {[%emt 0:04:55]} 14. Nxa5 {[%emt 0:00:42]} Bc5+ {[%emt 0:00:04]}
15. Kh1 {[%emt 0:00:05]} bxa5 {[%emt 0:00:01]} 16. Qd3 {[%emt 0:03:55]} Qb6 {
[%emt 0:01:27]} 17. Bd2 {[%emt 0:00:45]} O-O {[%emt 0:00:59]} 18. c4 {[%emt 0:
01:57]} f5 {[%emt 0:05:01]} 19. gxf5 {[%emt 0:01:46]} exf5 {[%emt 0:00:03]} 20.
Nc3 {[%emt 0:00:02]} Kh8 {[%emt 0:06:37]} 21. Nd5 {[%emt 0:01:50]} Bxd5 {[%emt
0:00:02]} 22. cxd5 {[%emt 0:00:02]} d6 {[%emt 0:00:44]} 23. Rae1 {[%emt 0:00:
44]} Ra7 {[%emt 0:02:27]} 24. exf5 Ne7 25. f6 {[%emt 0:02:13]} Rxf6 {[%emt 0:
00:39]} 26. Bc3 {[%emt 0:00:01]} Rf8 {[%emt 0:01:09]} 27. f5 Ng8 28. f6 {[%emt
0:01:41]} gxf6 {[%emt 0:00:16]} 29. Re6 {[%emt 0:00:54]} Qd8 {[%emt 0:00:49]}
30. Rf4 {[%emt 0:01:11]} Rh7 {[%emt 0:00:05]} 31. Be4 {[%emt 0:00:38]} Rh6 {
[%emt 0:00:02]} 32. Rg4 {[%emt 0:00:34]} Bb4 {[%emt 0:00:08]} 33. Bd4 {[%emt 0:
00:14]} Be1 {[%emt 0:00:07]} 34. Qe3 {[%emt 0:00:10]} Bg3 {[%emt 0:00:39]} 35.
Rxg8+ {[%emt 0:00:10]} 1-0

[Event "FIDE World Cup 2013"]
[Site "TromsÃ¸"]
[Date "2013.08.13"]
[Round "1.4"]
[White "Durarbayli, Vasif"]
[Black "Korobov, Anton"]
[Result "0-1"]
[ECO "B92"]
[WhiteElo "2549"]
[BlackElo "2720"]
[PlyCount "70"]
[EventDate "2013.??.??"]
[EventCountry "NOR"]
[TimeControl "1500+10"]

1. e4 {[%emt 0:00:00]} c5 2. Nf3 d6 {[%emt 0:00:00]} 3. d4 {[%emt 0:00:00]}
cxd4 {[%emt 0:00:00]} 4. Nxd4 {[%emt 0:00:00]} Nf6 {[%emt 0:00:00]} 5. Nc3 {
[%emt 0:00:00]} a6 {[%emt 0:00:00]} 6. Be2 {[%emt 0:00:00]} e5 {[%emt 0:00:01]}
7. Nb3 {[%emt 0:00:00]} Be7 {[%emt 0:00:03]} 8. O-O {[%emt 0:00:00]} O-O {
[%emt 0:00:02]} 9. Re1 {[%emt 0:00:00]} Be6 {[%emt 0:00:02]} 10. Bf3 {[%emt 0:
00:00]} Nbd7 {[%emt 0:00:07]} 11. a4 {[%emt 0:00:01]} Nb6 {[%emt 0:00:30]} 12.
Nd5 {[%emt 0:01:04]} Nfxd5 {[%emt 0:01:30]} 13. exd5 {[%emt 0:00:02]} Bd7 {
[%emt 0:00:01]} 14. a5 {[%emt 0:00:37]} Nc4 {[%emt 0:00:03]} 15. Re4 {[%emt 0:
00:15]} Rc8 {[%emt 0:01:34]} 16. Be2 {[%emt 0:00:10]} Bb5 {[%emt 0:00:30]} 17.
Bf1 {[%emt 0:02:57]} f5 {[%emt 0:00:56]} 18. Re1 {[%emt 0:00:01]} b6 {[%emt 0:
02:22]} 19. axb6 {[%emt 0:00:13]} Qxb6 {[%emt 0:00:03]} 20. c3 {[%emt 0:01:51]}
Bh4 {[%emt 0:00:56]} 21. Qc2 {[%emt 0:01:40]} f4 {[%emt 0:03:12]} 22. Bd3 {
[%emt 0:02:18]} g6 {[%emt 0:00:10]} 23. Rf1 {[%emt 0:01:35]} Ne3 {[%emt 0:01:
26]} 24. Bxe3 {[%emt 0:07:08]} fxe3 {[%emt 0:00:08]} 25. c4 {[%emt 0:00:42]} e4
{[%emt 0:00:59]} 26. Be2 {[%emt 0:00:11]} exf2+ {[%emt 0:02:54]} 27. Kh1 {
[%emt 0:00:36]} e3 {[%emt 0:01:55]} 28. Qe4 {[%emt 0:02:27]} Bd7 {[%emt 0:00:
21]} 29. Nd4 {[%emt 0:00:45]} Bf6 {[%emt 0:01:02]} 30. Ne6 {[%emt 0:00:01]}
Rce8 {[%emt 0:01:16]} 31. Ra3 {[%emt 0:00:52]} Bg5 {[%emt 0:00:39]} 32. Qg4 {
[%emt 0:01:53]} Qxb2 {[%emt 0:00:37]} 33. Rxa6 {[%emt 0:00:20]} Rf4 {[%emt 0:
00:16]} 34. Qxg5 {[%emt 0:00:45]} Qxe2 {[%emt 0:00:09]} 35. Raa1 {[%emt 0:00:
04]} Qxf1+ {[%emt 0:00:11]} 0-1

[Event "FIDE World Cup 2013"]
[Site "TromsÃ¸"]
[Date "2013.08.13"]
[Round "1.4"]
[White "Hracek, Zbynek"]
[Black "Bologan, Viktor"]
[Result "1/2-1/2"]
[ECO "A81"]
[WhiteElo "2635"]
[BlackElo "2672"]
[PlyCount "110"]
[EventDate "2013.??.??"]
[EventCountry "NOR"]
[TimeControl "1500+10"]

1. d4 {[%emt 0:00:00]} f5 {[%emt 0:00:00]} 2. g3 {[%emt 0:00:10]} Nf6 {[%emt 0:
00:00]} 3. Bg2 {[%emt 0:00:02]} g6 {[%emt 0:00:04]} 4. Nf3 {[%emt 0:00:06]} Bg7
{[%emt 0:00:01]} 5. O-O {[%emt 0:00:02]} O-O {[%emt 0:00:02]} 6. b3 {[%emt 0:
00:10]} d6 {[%emt 0:00:02]} 7. Bb2 {[%emt 0:00:06]} Qe8 {[%emt 0:00:02]} 8.
Nbd2 {[%emt 0:00:43]} Nc6 {[%emt 0:00:15]} 9. Re1 {[%emt 0:01:10]} Ne4 {[%emt
0:06:40]} 10. c4 {[%emt 0:03:59]} Qf7 {[%emt 0:02:02]} 11. Qc2 {[%emt 0:00:53]}
Nxd2 {[%emt 0:05:46]} 12. Qxd2 {[%emt 0:00:02]} e5 {[%emt 0:00:03]} 13. dxe5 {
[%emt 0:00:32]} dxe5 {[%emt 0:00:46]} 14. Ng5 {[%emt 0:00:57]} Qe7 {[%emt 0:01:
12]} 15. Bd5+ {[%emt 0:01:30]} Kh8 {[%emt 0:00:11]} 16. Bxc6 {[%emt 0:00:05]}
bxc6 {[%emt 0:00:02]} 17. f4 {[%emt 0:00:05]} e4 {[%emt 0:01:24]} 18. Red1 {
[%emt 0:01:18]} h6 {[%emt 0:02:36]} 19. Nh3 {[%emt 0:00:13]} a5 {[%emt 0:01:05]
} 20. Bxg7+ {[%emt 0:00:31]} Qxg7 {[%emt 0:00:25]} 21. Qd4 {[%emt 0:00:50]}
Qxd4+ {[%emt 0:01:15]} 22. Rxd4 {[%emt 0:00:02]} Be6 {[%emt 0:00:02]} 23. Nf2 {
[%emt 0:02:42]} a4 {[%emt 0:00:39]} 24. Rb1 {[%emt 0:01:56]} axb3 {[%emt 0:00:
04]} 25. axb3 {[%emt 0:00:01]} Ra2 {[%emt 0:00:44]} 26. Kf1 {[%emt 0:00:04]}
Rb8 {[%emt 0:00:09]} 27. Ke1 {[%emt 0:01:27]} Rc2 {[%emt 0:01:16]} 28. Rdd1 {
[%emt 0:02:10]} Rc3 {[%emt 0:00:20]} 29. Rdc1 {[%emt 0:00:43]} Rxc1+ {[%emt 0:
00:11]} 30. Rxc1 {[%emt 0:00:01]} Rxb3 {[%emt 0:00:01]} 31. Nd1 {[%emt 0:00:13]
} g5 {[%emt 0:00:14]} 32. Kf2 {[%emt 0:00:29]} gxf4 {[%emt 0:00:21]} 33. gxf4 {
[%emt 0:00:01]} Rh3 {[%emt 0:00:08]} 34. Kg2 {[%emt 0:00:21]} Ra3 {[%emt 0:00:
54]} 35. Kf2 {[%emt 0:00:03]} Kg7 {[%emt 0:00:36]} 36. Ne3 {[%emt 0:00:02]} Kf6
{[%emt 0:00:03]} 37. Rb1 {[%emt 0:04:09]} Ra4 {[%emt 0:00:09]} 38. Rb8 {[%emt
0:00:39]} Bxc4 {[%emt 0:00:58]} 39. Rf8+ {[%emt 0:00:02]} Kg7 {[%emt 0:00:14]}
40. Rxf5 {[%emt 0:00:43]} Bb5 {[%emt 0:00:02]} 41. Re5 {[%emt 0:00:04]} Kf6 {
[%emt 0:00:24]} 42. Ng4+ {[%emt 0:00:11]} Kg7 {[%emt 0:00:05]} 43. f5 {[%emt 0:
02:01]} h5 {[%emt 0:00:01]} 44. Ne3 {[%emt 0:00:17]} Ra2 {[%emt 0:00:09]} 45.
Rxe4 {[%emt 0:00:08]} Rxe2+ {[%emt 0:00:05]} 46. Kf3 {[%emt 0:00:13]} Rxh2 {
[%emt 0:00:12]} 47. Re7+ {[%emt 0:00:01]} Kf6 {[%emt 0:00:02]} 48. Rxc7 {[%emt
0:00:12]} Rh3+ {[%emt 0:00:11]} 49. Kf4 {[%emt 0:00:06]} Rh4+ {[%emt 0:00:01]}
50. Kf3 {[%emt 0:00:03]} Ra4 {[%emt 0:00:40]} 51. Rh7 {[%emt 0:00:08]} h4 {
[%emt 0:00:09]} 52. Rh6+ {[%emt 0:00:14]} Kg7 {[%emt 0:00:19]} 53. Rg6+ {[%emt
0:00:04]} Kf7 {[%emt 0:00:05]} 54. Ng4 {[%emt 0:00:11]} h3 {[%emt 0:00:17]} 55.
Ne5+ {[%emt 0:00:04]} Kf8 {[%emt 0:00:07]} 1/2-1/2

[Event "FIDE World Cup 2013"]
[Site "TromsÃ¸"]
[Date "2013.08.13"]
[Round "1.4"]
[White "Inarkiev, Ernesto"]
[Black "Leitao, Rafael"]
[Result "1-0"]
[ECO "B19"]
[WhiteElo "2680"]
[BlackElo "2632"]
[PlyCount "47"]
[EventDate "2013.??.??"]
[EventCountry "NOR"]
[TimeControl "1500+10"]

1. e4 {[%emt 0:00:00]} c6 {[%emt 0:00:00]} 2. d4 {[%emt 0:00:51]} d5 {[%emt 0:
00:00]} 3. Nc3 {[%emt 0:00:01]} dxe4 {[%emt 0:00:05]} 4. Nxe4 {[%emt 0:00:02]}
Bf5 {[%emt 0:00:24]} 5. Ng3 {[%emt 0:00:02]} Bg6 {[%emt 0:00:03]} 6. h4 {[%emt
0:00:07]} h6 {[%emt 0:00:02]} 7. Nf3 {[%emt 0:00:04]} Nd7 {[%emt 0:00:03]} 8.
h5 {[%emt 0:00:05]} Bh7 {[%emt 0:00:02]} 9. Bd3 {[%emt 0:00:02]} Bxd3 {[%emt 0:
00:03]} 10. Qxd3 {[%emt 0:00:01]} e6 {[%emt 0:00:07]} 11. Bd2 {[%emt 0:00:32]}
Ngf6 {[%emt 0:00:24]} 12. O-O-O {[%emt 0:00:04]} Qc7 {[%emt 0:00:58]} 13. Ne4 {
[%emt 0:01:48]} O-O-O {[%emt 0:00:08]} 14. g3 {[%emt 0:01:05]} Be7 {[%emt 0:00:
31]} 15. Kb1 {[%emt 0:03:05]} c5 {[%emt 0:00:28]} 16. Nc3 {[%emt 0:05:33]} a6 {
[%emt 0:01:51]} 17. Qe2 {[%emt 0:00:23]} cxd4 {[%emt 0:09:17]} 18. Bf4 {[%emt
0:00:25]} Bd6 {[%emt 0:02:24]} 19. Bxd6 {[%emt 0:05:12]} Qxd6 {[%emt 0:00:02]}
20. Rxd4 {[%emt 0:00:02]} Qe7 {[%emt 0:01:40]} 21. Rhd1 {[%emt 0:00:02]} Nb6 {
[%emt 0:00:34]} 22. Ne5 {[%emt 0:00:10]} Rxd4 {[%emt 0:00:29]} 23. Rxd4 {[%emt
0:00:02]} Rd8 {[%emt 0:00:24]} 24. Nc6 {[%emt 0:01:14]} 1-0

[Event "FIDE World Cup 2013"]
[Site "TromsÃ¸"]
[Date "2013.08.13"]
[Round "1.4"]
[White "Jones, Gawain C B"]
[Black "Shimanov, Aleksandr"]
[Result "1/2-1/2"]
[ECO "C07"]
[WhiteElo "2643"]
[BlackElo "2664"]
[PlyCount "60"]
[EventDate "2013.??.??"]
[EventCountry "NOR"]
[TimeControl "1500+10"]

1. e4 {[%emt 0:00:00]} e6 {[%emt 0:00:00]} 2. d4 {[%emt 0:00:00]} d5 {[%emt 0:
00:00]} 3. Nd2 {[%emt 0:00:00]} c5 {[%emt 0:00:00]} 4. Ngf3 {[%emt 0:00:00]}
cxd4 {[%emt 0:00:01]} 5. exd5 {[%emt 0:00:00]} Qxd5 {[%emt 0:00:03]} 6. Bc4 {
[%emt 0:00:00]} Qd7 {[%emt 0:00:07]} 7. O-O {[%emt 0:00:08]} Nc6 {[%emt 0:00:
02]} 8. Nb3 {[%emt 0:00:04]} Nf6 {[%emt 0:00:13]} 9. Qe2 {[%emt 0:00:05]} a6 {
[%emt 0:00:06]} 10. Rd1 {[%emt 0:00:13]} b5 {[%emt 0:00:49]} 11. Bd3 {[%emt 0:
00:02]} Bb7 {[%emt 0:02:45]} 12. Nbxd4 {[%emt 0:01:53]} Be7 {[%emt 0:01:19]}
13. c3 {[%emt 0:01:35]} Nxd4 {[%emt 0:03:56]} 14. Nxd4 {[%emt 0:00:04]} O-O {
[%emt 0:00:54]} 15. Bf4 {[%emt 0:00:59]} Qd5 {[%emt 0:00:33]} 16. f3 {[%emt 0:
01:15]} Qh5 {[%emt 0:00:18]} 17. Qe5 {[%emt 0:06:54]} Qxe5 {[%emt 0:02:39]} 18.
Bxe5 {[%emt 0:00:02]} Nd7 {[%emt 0:00:11]} 19. Bg3 {[%emt 0:00:19]} Nb6 {[%emt
0:00:09]} 20. Ne2 {[%emt 0:02:08]} Rac8 {[%emt 0:01:09]} 21. Bf2 {[%emt 0:00:
42]} Na4 {[%emt 0:01:12]} 22. Bc2 {[%emt 0:00:31]} Bd5 {[%emt 0:01:21]} 23.
Bxa4 {[%emt 0:00:19]} bxa4 {[%emt 0:00:01]} 24. Nf4 {[%emt 0:01:00]} a3 {[%emt
0:02:16]} 25. Nxd5 {[%emt 0:00:15]} exd5 {[%emt 0:00:03]} 26. bxa3 {[%emt 0:00:
30]} Rxc3 {[%emt 0:00:31]} 27. Rxd5 {[%emt 0:00:04]} Rxa3 {[%emt 0:00:24]} 28.
Re1 {[%emt 0:00:32]} Bb4 {[%emt 0:00:34]} 29. Re2 {[%emt 0:00:01]} Rc8 {[%emt
0:00:53]} 30. h4 {[%emt 0:00:05]} Ra5 {[%emt 0:01:16]} 1/2-1/2

[Event "FIDE World Cup 2013"]
[Site "TromsÃ¸"]
[Date "2013.08.13"]
[Round "1.4"]
[White "Kamsky, Gata"]
[Black "Lou, Yiping"]
[Result "1/2-1/2"]
[ECO "A48"]
[WhiteElo "2763"]
[BlackElo "2483"]
[PlyCount "176"]
[EventDate "2013.??.??"]
[EventCountry "NOR"]
[TimeControl "1500+10"]

1. d4 {[%emt 0:00:00]} Nf6 {[%emt 0:00:00]} 2. Nf3 {[%emt 0:00:00]} g6 {[%emt
0:00:00]} 3. Bg5 {[%emt 0:00:00]} Bg7 {[%emt 0:00:00]} 4. Nbd2 {[%emt 0:00:01]}
d5 {[%emt 0:00:00]} 5. e3 {[%emt 0:00:15]} O-O {[%emt 0:00:01]} 6. Be2 {[%emt
0:00:06]} c5 {[%emt 0:02:24]} 7. c3 {[%emt 0:00:03]} Qb6 {[%emt 0:00:14]} 8.
Qb3 {[%emt 0:00:07]} c4 {[%emt 0:00:24]} 9. Qa3 {[%emt 0:00:28]} Nc6 {[%emt 0:
00:30]} 10. b3 {[%emt 0:00:07]} cxb3 {[%emt 0:00:08]} 11. axb3 {[%emt 0:00:02]}
Re8 {[%emt 0:00:23]} 12. b4 {[%emt 0:00:09]} h6 {[%emt 0:02:04]} 13. Bh4 {
[%emt 0:01:30]} e5 {[%emt 0:00:43]} 14. b5 {[%emt 0:01:18]} exd4 {[%emt 0:01:
05]} 15. cxd4 {[%emt 0:00:09]} Ne7 {[%emt 0:00:28]} 16. O-O {[%emt 0:00:11]}
Nf5 {[%emt 0:00:23]} 17. Bxf6 {[%emt 0:00:11]} Bxf6 {[%emt 0:00:01]} 18. Bd3 {
[%emt 0:03:36]} Nd6 {[%emt 0:02:50]} 19. Rfb1 {[%emt 0:01:14]} Be6 {[%emt 0:00:
31]} 20. Nb3 {[%emt 0:00:15]} Nc4 {[%emt 0:01:13]} 21. Qc1 {[%emt 0:01:41]} Be7
{[%emt 0:02:03]} 22. Nbd2 {[%emt 0:02:32]} Rac8 {[%emt 0:00:53]} 23. Qd1 {
[%emt 0:01:05]} Bf8 {[%emt 0:00:40]} 24. h3 {[%emt 0:00:11]} Rc7 {[%emt 0:01:
06]} 25. Qa4 {[%emt 0:01:21]} Nxd2 {[%emt 0:01:33]} 26. Nxd2 {[%emt 0:00:03]}
Rc3 {[%emt 0:00:04]} 27. Rb3 {[%emt 0:01:44]} Rec8 {[%emt 0:00:41]} 28. Rxc3 {
[%emt 0:00:19]} Rxc3 {[%emt 0:00:02]} 29. Bf1 {[%emt 0:00:26]} Qc7 {[%emt 0:02:
02]} 30. Nf3 {[%emt 0:00:03]} Rc2 {[%emt 0:01:00]} 31. Ne1 {[%emt 0:00:07]} Rc1
{[%emt 0:01:32]} 32. Nd3 {[%emt 0:01:43]} Rxa1 {[%emt 0:00:21]} 33. Qxa1 {
[%emt 0:00:01]} b6 {[%emt 0:00:17]} 34. Nf4 {[%emt 0:00:16]} Bd6 {[%emt 0:00:
11]} 35. Nxe6 {[%emt 0:00:03]} fxe6 {[%emt 0:00:01]} 36. h4 {[%emt 0:00:55]} h5
{[%emt 0:00:09]} 37. Bd3 {[%emt 0:00:21]} Kg7 {[%emt 0:00:04]} 38. Qb1 {[%emt
0:00:05]} Qf7 {[%emt 0:00:02]} 39. Qc2 {[%emt 0:00:33]} Be7 {[%emt 0:00:13]}
40. g3 {[%emt 0:00:06]} Bf6 {[%emt 0:00:16]} 41. Qc6 {[%emt 0:00:33]} Qe7 {
[%emt 0:00:03]} 42. Qc2 {[%emt 0:01:10]} Qf7 {[%emt 0:00:03]} 43. Qc8 {[%emt 0:
00:15]} Qe7 {[%emt 0:00:58]} 44. Qc6 {[%emt 0:00:07]} Qf7 {[%emt 0:00:15]} 45.
Bf1 {[%emt 0:00:05]} Qe7 {[%emt 0:00:09]} 46. Bh3 {[%emt 0:00:02]} Kf7 {[%emt
0:00:01]} 47. Qc8 {[%emt 0:00:12]} Bg7 {[%emt 0:00:18]} 48. Kh2 {[%emt 0:00:28]
} Bf6 {[%emt 0:00:09]} 49. Kg2 {[%emt 0:00:01]} Bg7 {[%emt 0:00:06]} 50. g4 {
[%emt 0:02:01]} hxg4 {[%emt 0:00:24]} 51. Bxg4 {[%emt 0:00:02]} Bf6 {[%emt 0:
00:24]} 52. Kh3 {[%emt 0:01:00]} e5 {[%emt 0:03:14]} 53. dxe5 {[%emt 0:00:02]}
Qxe5 {[%emt 0:00:13]} 54. Qd7+ {[%emt 0:00:28]} Be7 {[%emt 0:00:09]} 55. Kg2 {
[%emt 0:00:34]} d4 {[%emt 0:00:33]} 56. exd4 {[%emt 0:01:02]} Qe4+ {[%emt 0:00:
02]} 57. Kg3 {[%emt 0:00:39]} Qd3+ {[%emt 0:00:18]} 58. Bf3 {[%emt 0:00:08]}
Qa3 {[%emt 0:00:38]} 59. Kg4 {[%emt 0:00:39]} Qd6 {[%emt 0:00:01]} 60. Qxd6 {
[%emt 0:00:27]} Bxd6 {[%emt 0:00:01]} 61. Be4 {[%emt 0:00:02]} Bb4 {[%emt 0:00:
20]} 62. f4 {[%emt 0:00:02]} Kf6 {[%emt 0:00:09]} 63. d5 {[%emt 0:00:20]} Bd6 {
[%emt 0:00:06]} 64. f5 {[%emt 0:00:08]} gxf5+ {[%emt 0:00:02]} 65. Bxf5 {[%emt
0:00:01]} Ke5 {[%emt 0:00:22]} 66. Be6 {[%emt 0:00:03]} Bb4 {[%emt 0:00:12]}
67. Bf7 {[%emt 0:01:15]} Bc5 {[%emt 0:00:07]} 68. Bg8 {[%emt 0:00:18]} Bb4 {
[%emt 0:00:02]} 69. Kg5 {[%emt 0:00:26]} Be7+ {[%emt 0:00:01]} 70. Kh5 {[%emt
0:00:01]} Kf5 {[%emt 0:00:30]} 71. Bf7 {[%emt 0:00:31]} Ke5 {[%emt 0:00:11]}
72. Be6 {[%emt 0:00:02]} Kf4 {[%emt 0:00:14]} 73. d6 {[%emt 0:00:24]} Bxd6 74.
Kg6 {[%emt 0:00:02]} Ke5 {[%emt 0:00:15]} 75. Bh3 {[%emt 0:00:07]} Bc5 {[%emt
0:00:05]} 76. h5 {[%emt 0:00:02]} Bd4 {[%emt 0:00:12]} 77. h6 {[%emt 0:00:04]}
Kd6 {[%emt 0:00:07]} 78. Kf7 {[%emt 0:00:01]} a5 {[%emt 0:00:07]} 79. bxa6 {
[%emt 0:00:07]} b5 {[%emt 0:00:06]} 80. h7 {[%emt 0:00:31]} Kc7 {[%emt 0:00:03]
} 81. Bf1 {[%emt 0:00:05]} b4 {[%emt 0:00:04]} 82. Ke6 {[%emt 0:00:09]} b3 {
[%emt 0:00:08]} 83. Kd5 {[%emt 0:00:04]} b2 {[%emt 0:00:05]} 84. Bd3 {[%emt 0:
00:01]} Bh8 {[%emt 0:00:07]} 85. Kc5 {[%emt 0:00:01]} Bg7 {[%emt 0:00:17]} 86.
Be4 {[%emt 0:00:09]} Kb8 {[%emt 0:00:12]} 87. Kb6 {[%emt 0:00:49]} Bd4+ {[%emt
0:00:01]} 88. Kb5 {[%emt 0:00:11]} Ka7 {[%emt 0:00:02]} 1/2-1/2

[Event "FIDE World Cup 2013"]
[Site "TromsÃ¸"]
[Date "2013.08.13"]
[Round "1.4"]
[White "Khismatullin, Denis"]
[Black "Kobalia, Mikhail"]
[Result "1/2-1/2"]
[ECO "A11"]
[WhiteElo "2658"]
[BlackElo "2651"]
[PlyCount "79"]
[EventDate "2013.??.??"]
[EventCountry "NOR"]
[TimeControl "1500+10"]

1. c4 {[%emt 0:00:00]} c6 {[%emt 0:00:00]} 2. Nf3 {[%emt 0:00:00]} d5 {[%emt 0:
00:00]} 3. e3 {[%emt 0:00:00]} Nf6 {[%emt 0:00:00]} 4. Nc3 {[%emt 0:00:46]} e6
{[%emt 0:00:00]} 5. b3 {[%emt 0:00:51]} Bd6 {[%emt 0:00:00]} 6. Bb2 {[%emt 0:
00:02]} O-O {[%emt 0:00:02]} 7. Be2 {[%emt 0:00:46]} Re8 {[%emt 0:01:03]} 8.
O-O {[%emt 0:03:18]} e5 {[%emt 0:00:12]} 9. cxd5 {[%emt 0:02:44]} cxd5 {[%emt
0:00:01]} 10. Nb5 {[%emt 0:00:01]} e4 {[%emt 0:00:18]} 11. Ne1 {[%emt 0:00:07]}
Be7 {[%emt 0:01:44]} 12. f4 {[%emt 0:01:10]} exf3 {[%emt 0:01:05]} 13. Nxf3 {
[%emt 0:00:06]} Nc6 {[%emt 0:00:09]} 14. Rc1 {[%emt 0:00:20]} Bg4 {[%emt 0:02:
47]} 15. Ne5 {[%emt 0:01:08]} Bxe2 {[%emt 0:02:15]} 16. Qxe2 {[%emt 0:00:03]}
Rc8 {[%emt 0:00:34]} 17. Nxc6 {[%emt 0:02:00]} Rxc6 {[%emt 0:00:01]} 18. Rxc6 {
[%emt 0:00:27]} bxc6 {[%emt 0:00:02]} 19. Nd4 {[%emt 0:00:02]} Qd7 {[%emt 0:00:
37]} 20. Nf5 {[%emt 0:00:36]} Bd8 {[%emt 0:01:14]} 21. Qf3 {[%emt 0:00:41]} Qe6
{[%emt 0:03:51]} 22. Rc1 {[%emt 0:07:09]} Ba5 {[%emt 0:04:52]} 23. Rc2 {[%emt
0:02:52]} c5 {[%emt 0:01:08]} 24. Rxc5 {[%emt 0:01:36]} Bxd2 {[%emt 0:00:03]}
25. Bd4 {[%emt 0:00:02]} Bb4 {[%emt 0:02:14]} 26. Rb5 {[%emt 0:00:42]} Bf8 {
[%emt 0:00:23]} 27. Rb7 {[%emt 0:01:13]} Ne4 {[%emt 0:00:45]} 28. h3 {[%emt 0:
00:35]} Rc8 {[%emt 0:00:48]} 29. Rxa7 {[%emt 0:00:08]} g6 {[%emt 0:01:08]} 30.
Ng3 {[%emt 0:00:15]} Rc1+ {[%emt 0:00:43]} 31. Kh2 {[%emt 0:00:02]} Bd6 {[%emt
0:00:06]} 32. Ra8+ {[%emt 0:00:20]} Rc8 {[%emt 0:00:01]} 33. Rxc8+ {[%emt 0:00:
09]} Qxc8 {[%emt 0:00:02]} 34. Kg1 {[%emt 0:00:10]} Bxg3 {[%emt 0:00:05]} 35.
Qd1 {[%emt 0:00:03]} Qf5 {[%emt 0:00:23]} 36. Qc1 {[%emt 0:00:20]} Bf2+ {[%emt
0:00:13]} 37. Kh1 {[%emt 0:00:08]} Ng3+ {[%emt 0:00:29]} 38. Kh2 {[%emt 0:00:
01]} Nf1+ {[%emt 0:00:44]} 39. Kh1 {[%emt 0:00:15]} Ng3+ {[%emt 0:00:01]} 40.
Kh2 {[%emt 0:00:00]} 1/2-1/2

[Event "FIDE World Cup 2013"]
[Site "TromsÃ¸"]
[Date "2013.08.13"]
[Round "1.4"]
[White "Kravtsiv, Martyn"]
[Black "Jobava, Baadur"]
[Result "0-1"]
[ECO "C41"]
[WhiteElo "2620"]
[BlackElo "2693"]
[PlyCount "78"]
[EventDate "2013.??.??"]
[EventCountry "NOR"]
[TimeControl "1500+10"]

1. e4 {[%emt 0:00:00]} d6 {[%emt 0:00:00]} 2. d4 {[%emt 0:00:16]} Nf6 {[%emt 0:
00:00]} 3. Nc3 {[%emt 0:00:01]} e5 {[%emt 0:00:00]} 4. Nf3 {[%emt 0:00:20]}
Nbd7 {[%emt 0:00:00]} 5. g3 {[%emt 0:00:39]} c6 {[%emt 0:01:52]} 6. a4 {[%emt
0:00:02]} Be7 {[%emt 0:00:59]} 7. Bg2 {[%emt 0:00:01]} O-O {[%emt 0:00:02]} 8.
O-O {[%emt 0:00:03]} Re8 {[%emt 0:00:08]} 9. Re1 {[%emt 0:00:15]} Bf8 {[%emt 0:
00:02]} 10. b3 {[%emt 0:00:24]} b6 {[%emt 0:00:30]} 11. a5 {[%emt 0:02:33]} b5
{[%emt 0:00:32]} 12. d5 {[%emt 0:00:18]} cxd5 {[%emt 0:00:17]} 13. exd5 {[%emt
0:04:29]} a6 {[%emt 0:01:21]} 14. Nd2 {[%emt 0:00:02]} Bb7 {[%emt 0:00:38]} 15.
Nf1 {[%emt 0:00:02]} Rc8 {[%emt 0:00:29]} 16. Bd2 {[%emt 0:00:02]} g6 {[%emt 0:
00:41]} 17. Qe2 {[%emt 0:00:58]} Bg7 {[%emt 0:00:23]} 18. Ne3 {[%emt 0:00:35]}
e4 {[%emt 0:00:10]} 19. Rad1 {[%emt 0:00:49]} h5 {[%emt 0:00:21]} 20. h4 {
[%emt 0:00:45]} Nc5 {[%emt 0:00:34]} 21. Nb1 {[%emt 0:01:38]} Nfd7 {[%emt 0:03:
38]} 22. Na3 {[%emt 0:00:45]} Ne5 {[%emt 0:00:41]} 23. b4 {[%emt 0:01:02]} Nf3+
{[%emt 0:00:01]} 24. Bxf3 {[%emt 0:00:01]} exf3 {[%emt 0:00:02]} 25. Qxf3 {
[%emt 0:00:02]} Ne4 {[%emt 0:00:01]} 26. Nb1 {[%emt 0:00:11]} Qf6 {[%emt 0:03:
28]} 27. Qg2 {[%emt 0:02:06]} Qb2 {[%emt 0:00:35]} 28. c3 {[%emt 0:00:45]} Qa2
{[%emt 0:00:29]} 29. Qf3 {[%emt 0:00:33]} Bxd5 {[%emt 0:02:31]} 30. Nxd5 {
[%emt 0:00:02]} Qxd5 {[%emt 0:00:02]} 31. Bh6 {[%emt 0:00:03]} Qc6 {[%emt 0:02:
03]} 32. Bxg7 {[%emt 0:00:11]} Kxg7 {[%emt 0:00:01]} 33. Re3 {[%emt 0:00:09]}
d5 {[%emt 0:01:30]} 34. Red3 {[%emt 0:02:00]} Re5 {[%emt 0:00:06]} 35. Qe3 {
[%emt 0:02:17]} Qf6 {[%emt 0:00:20]} 36. Qb6 {[%emt 0:01:00]} Rc6 {[%emt 0:00:
08]} 37. Qd4 {[%emt 0:00:20]} Rc4 {[%emt 0:00:02]} 38. Qb6 {[%emt 0:00:28]} Re6
{[%emt 0:00:15]} 39. Qa7 {[%emt 0:00:11]} d4 {[%emt 0:00:02]} 0-1